Workbook

Sheet KORTTI
B1: Lotta-Riina Hynninen | E1: 14.3.1991 Varkaus
B2: SUPERPESIS | E2: Runkosarja | I2: Kärkilyönnit (KL), pesänvälit | P2: Ylempi loppusarja | U2: Alempi loppusarja | Z2: Arvo-ottelut ja mitalit | AF2: Runkosarjan jälkeen
B3: Vuosi | C3: Sija | D3: Seura | E3: OTT | F3: KUN | G3: LÖI | H3: TOI | I3: KL | J3: 0 > 1 | K3: 1 > 2 | L3: 2 > 3 | M3: 3 > k | N3: KL-% | P3: OTT | Q3: KUN | R3: LÖI | S3: TOI | T3: KL | U3: OTT | V3: KUN | W3: LÖI | X3: TOI | Y3: KL | Z3: IL | AA3: LL | AB3: Halli | AC3: K | AD3: H | AE3: P
B4: 2006 | D4: PKP | F4: suomensarja
B5: 2007 | D5: PKP | F5: suomensarja
B6: 2008 | D6: VuVe | F6: ykköspesis
B7: 2009 | D7: Kirittäret | F7: tyttöjen superpesis
B8: 2010 | D8: Kirittäret 2 | F8: ykköspesis
B9: 2011 | D9: Kirittäret 2 | F9: ykköspesis
B10: 2012 | D10: Kirittäret 2 | F10: ykköspesis
B11: 2012 | C11: 2. | D11: Kirittäret | E11: 10 | F11: 0 | G11: 1 | H11: 6 | I11: 15 | J11: 13 | K11: 1 | L11: 0 | M11: 1 | N11: 45.5 % | O11: =PRODUCT(I11/N11) -> 32.96703297 | P11: 6 | Q11: 0 | R11: 0 | S11: 2 | T11: 5 | AD11: 1 | AF11: play off
B12: 2013 | C12: 3. | D12: Kirittäret | E12: 24 | F12: 1 | G12: 5 | H12: 11 | I12: 39 | J12: 23 | K12: 5 | L12: 5 | M12: 6 | N12: 37.1 % | O12: =PRODUCT(I12/N12) -> 105.0080775 | P12: 8 | Q12: 0 | R12: 0 | S12: 3 | T12: 10 | AE12: 1 | AF12: play off
B13: 2014 | C13: 9. | D13: Pesä Ysit | E13: 22 | F13: 0 | G13: 9 | H13: 10 | I13: 74 | J13: 18 | K13: 22 | L13: 25 | M13: 9 | N13: 45.7 % | O13: =PRODUCT(I13/N13) -> 161.9256018
B14: 2015 | D14: Kirittäret 2 | F14: ykköspesis
B15: 2015 | C15: 2. | D15: Kirittäret | E15: 5 | F15: 0 | G15: 1 | H15: 0 | I15: 7 | J15: 5 | K15: 1 | L15: 0 | M15: 1 | N15: 31.8 % | O15: 22 | P15: 2 | Q15: 0 | R15: 0 | S15: 0 | T15: 3 | AB15: 1 | AD15: 1 | AF15: play off
B16: 2016 | D16: Tahko | F16: ykköspesis
B17: 2016 | D17: Kirittäret | E17: 0 | F17: 0 | G17: 0 | H17: 0 | I17: 0 | J17: 0 | K17: 0 | L17: 0 | M17: 0 | AB17: 1
B18: Yhteensä | E18: =SUM(E4:E17) -> 61 | F18: 1 | G18: 16 | H18: 27 | I18: 135 | J18: 59 | K18: 29 | L18: 30 | M18: 17 | N18: =PRODUCT(I18/O18) -> 41.9 % | O18: =SUM(O7:O17) -> 321.9007123 | P18: =SUM(P4:P17) -> 16 | Q18: 0 | R18: 0 | S18: 5 | T18: 18 | U18: 0 | V18: 0 | W18: 0 | X18: 0 | Y18: 0 | Z18: 0 | AA18: 0 | AB18: 2 | AC18: 0 | AD18: 2 | AE18: 1
B19: Pesispörssi | D19: =SUM(F18:H18)+((I18-F18-G18)/3)+(E18/3)+(Z18*25)+(AA18*25)+(AB18*10)+(AC18*25)+(AD18*20)+(AE18*15)-20 -> 158.7
B21: URA SUPERISSA | E21: OTT | F21: KUN | G21: LÖI | H21: TOI | I21: KL | K21: ka/L | L21: ka/T | M21: ka/KL | N21: K - % | P21: ENSIMMÄISET
B22: Runkosarja | E22: =PRODUCT(E18) -> 61 | F22: =PRODUCT(F18) -> 1 | G22: =PRODUCT(G18) -> 16 | H22: =PRODUCT(H18) -> 27 | I22: =PRODUCT(I18) -> 135 | K22: =PRODUCT((F22+G22)/E22) -> 0.28 | L22: =PRODUCT(H22/E22) -> 0.44 | M22: =PRODUCT(I22/E22) -> 2.21 | N22: =PRODUCT(N18) -> 41.9 % | O22: =PRODUCT(O18) -> 321.9007123 | P22: Ottelu | S22: 04.07. 2012 KeKi - Kirittäret 0-2 (2-6, 0-4) | AD22: 1. ottelu | AF22: 21 v 3 kk 20 pv
B23: Ylempi loppusarja | E23: =PRODUCT(P18) -> 16 | F23: =PRODUCT(Q18) -> 0 | G23: =PRODUCT(R18) -> 0 | H23: =PRODUCT(S18) -> 5 | I23: =PRODUCT(T18) -> 18 | K23: =PRODUCT((F23+G23)/E23) -> 0.00 | L23: =PRODUCT(H23/E23) -> 0.31 | M23: =PRODUCT(I23/E23) -> 1.13 | N23: =PRODUCT(I23/O23) -> 34.0 % | O23: 53 | P23: Lyöty juoksu | S23: 08.08. 2012 YPJ - Kirittäret 0-2 (2-3, 1-5) | AD23: 10. ottelu | AF23: 21 v 4 kk 25 pv
B24: Alempi loppusarja | O24: 0 | P24: Tuotu juoksu | S24: 04.07. 2012 KeKi - Kirittäret 0-2 (2-6, 0-4) | AD24: 1. ottelu | AF24: 21 v 3 kk 20 pv
B25: KAIKKI | E25: =SUM(E22:E24) -> 77 | F25: =SUM(F22:F24) -> 1 | G25: =SUM(G22:G24) -> 16 | H25: =SUM(H22:H24) -> 32 | I25: =SUM(I22:I24) -> 153 | K25: =PRODUCT((F25+G25)/E25) -> 0.22 | L25: =PRODUCT(H25/E25) -> 0.42 | M25: =PRODUCT(I25/E25) -> 1.99 | N25: =PRODUCT(I25/O25) -> 40.8 % | O25: =SUM(O22:O24) -> 374.9007123 | P25: Kunnari | S25: 24.07. 2013 Kirittäret - Räpsä 2-0 (7-4, 3-0) | AD25: 35. ottelu | AF25: 22 v 4 kk 10 pv
B27: Seurat | D27: PKP = Puurtilan Kisa-Pojat (1948), kasvattajaseura
D28: VuVe = Vuokatin Veto (1946)
D29: Kirittäret = Jyväskylän Kirittäret (2004)
D30: Pesä Ysit = Pesä Ysit, Lappeenranta (1976)
D31: Tahko = Hyvinkään Tahko (1915)
